Workbook

Sheet Hushållsbudget
B1: DAHLGRENS HUSHÅLLSBUDGET
B2: ÅR: | C2: 2013
B4: TILLGÄNGLIG KASSA | C4: JAN | D4: FEB | E4: MAR | F4: APR | G4: MAJ | H4: JUN | I4: JUL | J4: AUG | K4: SEP | L4: OKT | M4: NOV | N4: DEC | O4: SUMMA HITTILLS I ÅR | P4: TREND
B5: Månadskassa | C5: =tabell_Inkomster[[#Totals],[JAN]]-tabell_Utgifter[[#Totals],[JAN]] -> 1,220.00 kr | D5: =tabell_Inkomster[[#Totals],[FEB]]-tabell_Utgifter[[#Totals],[FEB]] -> 1,587.00 kr | E5: =tabell_Inkomster[[#Totals],[MAR]]-tabell_Utgifter[[#Totals],[MAR]] -> 1,174.00 kr | F5: =tabell_Inkomster[[#Totals],[APR]]-tabell_Utgifter[[#Totals],[APR]] -> 1,445.00 kr | G5: =tabell_Inkomster[[#Totals],[MAJ]]-tabell_Utgifter[[#Totals],[MAJ]] -> 1,391.00 kr | H5: =tabell_Inkomster[[#Totals],[JUN]]-tabell_Utgifter[[#Totals],[JUN]] -> 1,434.00 kr | I5: =tabell_Inkomster[[#Totals],[JUL]]-tabell_Utgifter[[#Totals],[JUL]] -> 1,085.00 kr | J5: =tabell_Inkomster[[#Totals],[AUG]]-tabell_Utgifter[[#Totals],[AUG]] -> 1,181.00 kr | K5: =tabell_Inkomster[[#Totals],[SEP]]-tabell_Utgifter[[#Totals],[SEP]] -> 1,445.00 kr | L5: =tabell_Inkomster[[#Totals],[OKT]]-tabell_Utgifter[[#Totals],[OKT]] -> 1,466.00 kr | M5: =tabell_Inkomster[[#Totals],[NOV]]-tabell_Utgifter[[#Totals],[NOV]] -> 0.00 kr | N5: =tabell_Inkomster[[#Totals],[DEC]]-tabell_Utgifter[[#Totals],[DEC]] -> 0.00 kr | O5: =tabell_Inkomster[[#Totals],[SUMMA HITTILLS I ÅR]]-tabell_Utgifter[[#Totals],[SUMMA HITTILLS I ÅR]] -> 13,428.00 kr
B7: INKOMSTTYP | C7: JAN | D7: FEB | E7: MAR | F7: APR | G7: MAJ | H7: JUN | I7: JUL | J7: AUG | K7: SEP | L7: OKT | M7: NOV | N7: DEC | O7: SUMMA HITTILLS I ÅR | P7: TREND
B8: Inkomst 1 | C8: 4,000.00 kr | D8: 4,410.00 kr | E8: 4,019.00 kr | F8: 4,263.00 kr | G8: 4,123.00 kr | H8: 4,308.00 kr | I8: 4,162.00 kr | J8: 4,165.00 kr | K8: 4,248.00 kr | L8: 4,324.00 kr | O8: =SUM(tabell_Inkomster[[#This Row],[JAN]:[DEC]]) -> 42,022.00 kr
B9: Inkomst 2 | C9: 275.00 kr | D9: 296.00 kr | E9: 251.00 kr | F9: 269.00 kr | G9: 252.00 kr | H9: 252.00 kr | I9: 262.00 kr | J9: 258.00 kr | K9: 296.00 kr | L9: 270.00 kr | O9: =SUM(tabell_Inkomster[[#This Row],[JAN]:[DEC]]) -> 2,681.00 kr
B10: Övriga inkomster | C10: 500.00 kr | D10: 507.00 kr | E10: 551.00 kr | F10: 556.00 kr | G10: 588.00 kr | H10: 534.00 kr | I10: 533.00 kr | J10: 585.00 kr | K10: 560.00 kr | L10: 520.00 kr | O10: =SUM(tabell_Inkomster[[#This Row],[JAN]:[DEC]]) -> 5,434.00 kr
B11: SAMMANLAGDA INKOMSTER | C11: =SUBTOTAL(109,tabell_Inkomster[JAN]) -> 4,775.00 kr | D11: =SUBTOTAL(109,tabell_Inkomster[FEB]) -> 5,213.00 kr | E11: =SUBTOTAL(109,tabell_Inkomster[MAR]) -> 4,821.00 kr | F11: =SUBTOTAL(109,tabell_Inkomster[APR]) -> 5,088.00 kr | G11: =SUBTOTAL(109,tabell_Inkomster[MAJ]) -> 4,963.00 kr | H11: =SUBTOTAL(109,tabell_Inkomster[JUN]) -> 5,094.00 kr | I11: =SUBTOTAL(109,tabell_Inkomster[JUL]) -> 4,957.00 kr | J11: =SUBTOTAL(109,tabell_Inkomster[AUG]) -> 5,008.00 kr | K11: =SUBTOTAL(109,tabell_Inkomster[SEP]) -> 5,104.00 kr | L11: =SUBTOTAL(109,tabell_Inkomster[OKT]) -> 5,114.00 kr | M11: =SUBTOTAL(109,tabell_Inkomster[NOV]) -> 0.00 kr | N11: =SUBTOTAL(109,tabell_Inkomster[DEC]) -> 0.00 kr | O11: =SUBTOTAL(109,tabell_Inkomster[SUMMA HITTILLS I ÅR]) -> 50,137.00 kr
B13: UTGIFTER | C13: JAN | D13: FEB | E13: MAR | F13: APR | G13: MAJ | H13: JUN | I13: JUL | J13: AUG | K13: SEP | L13: OKT | M13: NOV | N13: DEC | O13: SUMMA HITTILLS I ÅR | P13: TREND
B14: Bostad | C14: 1,500.00 kr | D14: 1,500.00 kr | E14: 1,500.00 kr | F14: 1,500.00 kr | G14: 1,500.00 kr | H14: 1,500.00 kr | I14: 1,500.00 kr | J14: 1,500.00 kr | K14: 1,500.00 kr | L14: 1,500.00 kr | O14: =SUM(tabell_Utgifter[[#This Row],[JAN]:[DEC]]) -> 15,000.00 kr
B15: Mat | C15: 250.00 kr | D15: 331.00 kr | E15: 299.00 kr | F15: 333.00 kr | G15: 324.00 kr | H15: 313.00 kr | I15: 338.00 kr | J15: 225.00 kr | K15: 258.00 kr | L15: 322.00 kr | O15: =SUM(tabell_Utgifter[[#This Row],[JAN]:[DEC]]) -> 2,993.00 kr
B16: Avbetalning på bilen | C16: 345.00 kr | D16: 345.00 kr | E16: 345.00 kr | F16: 345.00 kr | G16: 345.00 kr | H16: 345.00 kr | I16: 345.00 kr | J16: 345.00 kr | K16: 345.00 kr | L16: 345.00 kr | O16: =SUM(tabell_Utgifter[[#This Row],[JAN]:[DEC]]) -> 3,450.00 kr
B17: Försäkring | C17: 120.00 kr | D17: 120.00 kr | E17: 120.00 kr | F17: 120.00 kr | G17: 120.00 kr | H17: 120.00 kr | I17: 120.00 kr | J17: 120.00 kr | K17: 120.00 kr | L17: 120.00 kr | O17: =SUM(tabell_Utgifter[[#This Row],[JAN]:[DEC]]) -> 1,200.00 kr
B18: Hemtelefon | C18: 50.00 kr | D18: 50.00 kr | E18: 50.00 kr | F18: 50.00 kr | G18: 50.00 kr | H18: 50.00 kr | I18: 50.00 kr | J18: 50.00 kr | K18: 50.00 kr | L18: 50.00 kr | O18: =SUM(tabell_Utgifter[[#This Row],[JAN]:[DEC]]) -> 500.00 kr
B19: Mobiltelefon | C19: 72.00 kr | D19: 70.00 kr | E19: 80.00 kr | F19: 70.00 kr | G19: 75.00 kr | H19: 80.00 kr | I19: 90.00 kr | J19: 73.00 kr | K19: 75.00 kr | L19: 70.00 kr | O19: =SUM(tabell_Utgifter[[#This Row],[JAN]:[DEC]]) -> 755.00 kr
B20: Kabel-tv | C20: 60.00 kr | D20: 63.00 kr | E20: 65.00 kr | F20: 60.00 kr | G20: 65.00 kr | H20: 60.00 kr | I20: 63.00 kr | J20: 60.00 kr | K20: 63.00 kr | L20: 60.00 kr | O20: =SUM(tabell_Utgifter[[#This Row],[JAN]:[DEC]]) -> 619.00 kr
B21: Internet | C21: 45.00 kr | D21: 45.00 kr | E21: 45.00 kr | F21: 45.00 kr | G21: 45.00 kr | H21: 45.00 kr | I21: 45.00 kr | J21: 45.00 kr | K21: 45.00 kr | L21: 45.00 kr | O21: =SUM(tabell_Utgifter[[#This Row],[JAN]:[DEC]]) -> 450.00 kr
B22: Elektricitet | C22: 155.00 kr | D22: 155.00 kr | E22: 158.00 kr | F22: 160.00 kr | G22: 165.00 kr | H22: 200.00 kr | I22: 340.00 kr | J22: 350.00 kr | K22: 240.00 kr | L22: 180.00 kr | O22: =SUM(tabell_Utgifter[[#This Row],[JAN]:[DEC]]) -> 2,103.00 kr
B23: Vatten | C23: 35.00 kr | D23: 35.00 kr | E23: 37.00 kr | F23: 39.00 kr | G23: 45.00 kr | H23: 42.00 kr | I23: 42.00 kr | J23: 36.00 kr | K23: 38.00 kr | L23: 40.00 kr | O23: =SUM(tabell_Utgifter[[#This Row],[JAN]:[DEC]]) -> 389.00 kr
B24: Drivmedel | C24: 50.00 kr | D24: 45.00 kr | E24: 40.00 kr | F24: 40.00 kr | G24: 42.00 kr | H24: 50.00 kr | I24: 55.00 kr | J24: 40.00 kr | K24: 43.00 kr | L24: 30.00 kr | O24: =SUM(tabell_Utgifter[[#This Row],[JAN]:[DEC]]) -> 435.00 kr
B25: Nöjen | C25: 123.00 kr | D25: 92.00 kr | E25: 58.00 kr | F25: 131.00 kr | G25: 46.00 kr | H25: 105.00 kr | I25: 84.00 kr | J25: 108.00 kr | K25: 132.00 kr | L25: 136.00 kr | O25: =SUM(tabell_Utgifter[[#This Row],[JAN]:[DEC]]) -> 1,015.00 kr
B26: Skolavgifter | C26: 550.00 kr | D26: 550.00 kr | E26: 550.00 kr | F26: 550.00 kr | G26: 550.00 kr | H26: 550.00 kr | I26: 550.00 kr | J26: 550.00 kr | K26: 550.00 kr | L26: 550.00 kr | O26: =SUM(tabell_Utgifter[[#This Row],[JAN]:[DEC]]) -> 5,500.00 kr
B27: Besparingar | C27: 200.00 kr | D27: 225.00 kr | E27: 300.00 kr | F27: 200.00 kr | G27: 200.00 kr | H27: 200.00 kr | I27: 250.00 kr | J27: 325.00 kr | K27: 200.00 kr | L27: 200.00 kr | O27: =SUM(tabell_Utgifter[[#This Row],[JAN]:[DEC]]) -> 2,300.00 kr
B28: SAMMANLAGDA UTGIFTER | C28: =SUBTOTAL(109,tabell_Utgifter[JAN]) -> 3,555.00 kr | D28: =SUBTOTAL(109,tabell_Utgifter[FEB]) -> 3,626.00 kr | E28: =SUBTOTAL(109,tabell_Utgifter[MAR]) -> 3,647.00 kr | F28: =SUBTOTAL(109,tabell_Utgifter[APR]) -> 3,643.00 kr | G28: =SUBTOTAL(109,tabell_Utgifter[MAJ]) -> 3,572.00 kr | H28: =SUBTOTAL(109,tabell_Utgifter[JUN]) -> 3,660.00 kr | I28: =SUBTOTAL(109,tabell_Utgifter[JUL]) -> 3,872.00 kr | J28: =SUBTOTAL(109,tabell_Utgifter[AUG]) -> 3,827.00 kr | K28: =SUBTOTAL(109,tabell_Utgifter[SEP]) -> 3,659.00 kr | L28: =SUBTOTAL(109,tabell_Utgifter[OKT]) -> 3,648.00 kr | M28: =SUBTOTAL(109,tabell_Utgifter[NOV]) -> 0.00 kr | N28: =SUBTOTAL(109,tabell_Utgifter[DEC]) -> 0.00 kr | O28: =SUBTOTAL(109,tabell_Utgifter[SUMMA HITTILLS I ÅR]) -> 36,709.00 kr
